[Event "Icelandic Team-ch Premier 2021-22"]
[Site "Reykjavik"]
[Date "2022.03.05"]
[Round "8.22"]
[White "Hreinsson, Hlidar"]
[Black "Heimisson, Hilmir Freyr"]
[Result "0-1"]
[ECO "B31"]
[WhiteElo "2180"]
[BlackElo "2312"]
[Annotator "NA"]
[PlyCount "96"]
[EventDate "2022.03.05"]
[EventType "team-tourn"]
[EventCountry "ISL"]
[SourceTitle "playchess.com"]
[Source "ChessBase"]
[SourceQuality "1"]
[TimeControl "5400+30"]

1. e4 {[%emt 0:00:02]} c5 {[%emt 0:00:58]} 2. Nf3 {[%emt 0:01:10]} Nc6 {[%emt 0:00:57]} 3. Bb5 {[%emt 0:01:43]} d6 {[%emt 0:01:56]} 4. Bxc6+ {[%emt 0:03:06]} bxc6 {[%emt 0:00:10]} 5. d3 {[%emt 0:01:27]} g6 {[%emt 0:03:43]} 6. c3 {[%emt 0:01:32]} Nf6 {[%emt 0:10:10]} 7. O-O {[%emt 0:01:16]} Bg7 {[%emt 0:00:07]} 8. Re1 {[%emt 0:01:57]} O-O {[%emt 0:02:12]} 9. h3 {[%emt 0:10:22]} Rb8 {[%emt 0:01:53]} 10. Qc2 {[%emt 0:01:11]} Nd7 {[%emt 0:14:01]} 11. Bf4 {[%emt 0:06:20]} Qb6 {[%emt 0:05:16]} 12. b3 {[%emt 0:01:19]} e5 {[%emt 0:04:45]} 13. Bg3 {[%emt 0:02:46]} f5 {[%emt 0:03:19]} 14. exf5 {[%emt 0:02:27]} gxf5 {[%emt 0:04:06]} 15. Nbd2 {[%emt 0:01:08]} f4 {[%emt 0:03:04]} 16. Bh4 {[%emt 0:03:03]} d5 {[%emt 0:01:34]} 17. Rab1 {[%emt 0:11:45]} Ba6 {[%emt 0:02:45]} 18. c4 {[%emt 0:02:12]} Rbe8 {[%emt 0:01:03]} 19. Re2 {[%emt 0:05:28]} Qb8 {[%emt 0:02:17]} 20. Rbe1 {[%emt 0:01:25]} Qd6 $11 {[%emt 0:01:25]} 21. Nb1 {[%emt 0:19:22]} Bc8 {[%emt 0:04:35]} 22. Qd2 {[%emt 0:02:32]} Nb6 {[%emt 0:03:02]} 23. Qa5 {[%emt 0:01:04]} Bf5 {[%emt 0:05:35]} 24. b4 {[%emt 0:03:06]} Nd7 {[%emt 0:03:49]} 25. Rd2 {[%emt 0:06:51]} cxb4 {[%emt 0:02:45]} 26. Rc1 {[%emt 0:01:30]} d4 {[%emt 0:05:42]} 27. c5 {[%emt 0:01:21]} Qd5 {[%emt 0:00:29]} 28. Qxb4 {[%emt 0:00:37]} Rb8 {[%emt 0:00:29]} 29. Qa3 {[%emt 0:00:15]} Rfe8 {[%emt 0:02:40]} 30. Re2 {[%emt 0:00:56]} Rb5 {[%emt 0:03:51]} 31. Nbd2 {[%emt 0:02:25]} Nxc5 {[%emt 0:00:33]} 32. Qxa7 {[%emt 0:02:13]} Bxd3 {[%emt 0:02:26]} 33. Ree1 {[%emt 0:00:36]} Ne6 {[%emt 0:02:27]} 34. Ng5 {[%emt 0:00:53]} Nxg5 {[%emt 0:01:07]} 35. Bxg5 {[%emt 0:00:01]} Bg6 {[%emt 0:00:50]} 36. Nb3 {[%emt 0:01:06]} d3 {[%emt 0:00:25]} 37. Red1 {[%emt 0:00:21]} h6 {[%emt 0:00:46]} 38. Be7 {[%emt 0:00:24]} e4 {[%emt 0:01:00]} 39. Bc5 {[%emt 0:00:04]} Bh5 {[%emt 0:00:43]} 40. Rd2 {[%emt 0:00:24]} Qg5 {[%emt 0:00:44]} 41. Qd7 {[%emt 0:00:46]} Rbb8 {[%emt 0:00:39]} 42. Bd4 {[%emt 0:02:11]} Rbd8 {[%emt 0:00:28]} 43. Qxg7+ {[%emt 0:00:22]} Qxg7 {[%emt 0:00:01]} 44. Bxg7 {[%emt 0:00:06]} Kxg7 {[%emt 0:00:03]} 45. Nc5 {[%emt 0:00:43]} Bg6 {[%emt 0:00:23]} 46. Nxe4 {[%emt 0:00:58]} Rxe4 {[%emt 0:00:36]} 47. Rxc6 {[%emt 0:00:04]} Re1+ {[%emt 0:00:55]} 48. Kh2 {[%emt 0:00:01]} Rd7 {[%emt 0:00:17]} 0-1

[Event "Icelandic Team-ch Premier 2021-22"]
[Site "Reykjavik"]
[Date "2022.03.05"]
[Round "8.23"]
[White "Halldorsson, Jon Arni"]
[Black "Dadason, Gudmundur"]
[Result "1-0"]
[ECO "E09"]
[WhiteElo "2070"]
[BlackElo "2097"]
[Annotator "NA"]
[PlyCount "63"]
[EventDate "2022.03.05"]
[EventType "team-tourn"]
[EventCountry "ISL"]
[SourceTitle "playchess.com"]
[Source "ChessBase"]
[SourceQuality "1"]
[TimeControl "5400+30"]

1. d4 {[%emt 0:00:04]} Nf6 {[%emt 0:00:05]} 2. Nf3 {[%emt 0:00:23]} e6 {[%emt 0:00:12]} 3. c4 {[%emt 0:00:15]} d5 {[%emt 0:00:17]} 4. g3 {[%emt 0:00:21]} c6 {[%emt 0:00:39]} 5. Nbd2 {[%emt 0:00:27]} Be7 {[%emt 0:02:54]} 6. Bg2 {[%emt 0:00:23]} O-O {[%emt 0:00:08]} 7. O-O {[%emt 0:00:10]} Nbd7 {[%emt 0:00:18]} 8. b3 {[%emt 0:00:44]} Re8 {[%emt 0:00:45]} 9. Bb2 {[%emt 0:00:17]} Nf8 {[%emt 0:01:06]} 10. Qc2 {[%emt 0:00:49]} Bd7 {[%emt 0:10:36]} 11. e4 {[%emt 0:01:30]} dxe4 {[%emt 0:08:24]} 12. Ng5 {[%emt 0:05:05]} Rc8 {[%emt 0:02:58]} 13. Ndxe4 {[%emt 0:01:26]} b5 {[%emt 0:05:20]} 14. Nxf6+ {[%emt 0:06:24]} gxf6 {[%emt 0:07:03]} 15. Ne4 {[%emt 0:01:49]} f5 {[%emt 0:04:56]} 16. Nd2 {[%emt 0:01:45]} Bf6 {[%emt 0:01:18]} 17. Rad1 {[%emt 0:06:27]} c5 {[%emt 0:12:33]} 18. dxc5 {[%emt 0:13:22]} Rxc5 {[%emt 0:02:19]} 19. b4 {[%emt 0:08:58]} Rc8 {[%emt 0:05:37]} 20. c5 {[%emt 0:00:24]} Bxb2 {[%emt 0:03:22]} 21. Qxb2 {[%emt 0:00:10]} Qc7 {[%emt 0:01:08]} 22. Qf6 {[%emt 0:06:45]} Bc6 {[%emt 0:01:44]} 23. Qg5+ {[%emt 0:01:07]} Kh8 {[%emt 0:00:45]} 24. Nb3 {[%emt 0:05:43]} Bxg2 {[%emt 0:02:56]} 25. Kxg2 {[%emt 0:02:03]} Rcd8 {[%emt 0:03:01]} 26. h4 {[%emt 0:02:33]} Qc6+ {[%emt 0:10:37]} 27. f3 {[%emt 0:00:43]} Rd5 {[%emt 0:04:54]} 28. h5 {[%emt 0:09:55]} Nd7 {[%emt 0:03:51]} 29. Nd4 {[%emt 0:04:56]} f6 {[%emt 0:01:59]} 30. Qh6 {[%emt 0:02:23]} Qa6 {[%emt 0:01:03]} 31. c6 {[%emt 0:01:18]} Rxd4 {[%emt 0:02:22]} 32. cxd7 {[%emt 0:00:39]} 1-0

[Event "Icelandic Team-ch Premier 2021-22"]
[Site "Reykjavik"]
[Date "2022.03.05"]
[Round "8.24"]
[White "Briem, Stephan"]
[Black "Hauksson, Hordur Aron"]
[Result "1-0"]
[ECO "D35"]
[WhiteElo "2039"]
[BlackElo "1871"]
[Annotator "NA"]
[PlyCount "59"]
[EventDate "2022.03.05"]
[EventType "team-tourn"]
[EventCountry "ISL"]
[SourceTitle "playchess.com"]
[Source "ChessBase"]
[SourceQuality "1"]
[TimeControl "5400+30"]

1. d4 {[%emt 0:00:03]} d5 {[%emt 0:00:09]} 2. c4 {[%emt 0:00:20]} e6 {[%emt 0:00:06]} 3. Nc3 {[%emt 0:00:32]} Nf6 {[%emt 0:00:39]} 4. cxd5 {[%emt 0:00:09]} exd5 {[%emt 0:00:26]} 5. Bg5 {[%emt 0:00:09]} Be7 {[%emt 0:01:08]} 6. e3 {[%emt 0:00:49]} O-O {[%emt 0:02:23]} 7. Bd3 {[%emt 0:00:43]} Nbd7 {[%emt 0:14:00]} 8. Qc2 {[%emt 0:01:01]} c5 {[%emt 0:05:20]} 9. Nge2 {[%emt 0:21:26]} Re8 {[%emt 0:08:53]} 10. O-O {[%emt 0:00:30]} cxd4 {[%emt 0:16:35]} 11. Nxd4 {[%emt 0:02:40]} Ne5 {[%emt 0:08:30]} 12. Bxf6 {[%emt 0:03:10]} Bxf6 {[%emt 0:00:31]} 13. Bxh7+ {[%emt 0:00:28]} Kh8 {[%emt 0:00:06]} 14. Bf5 {[%emt 0:03:37]} Bxf5 {[%emt 0:03:56]} 15. Nxf5 {[%emt 0:05:37]} g6 {[%emt 0:03:14]} 16. Ng3 {[%emt 0:01:18]} Qc7 {[%emt 0:05:48]} 17. Qb3 {[%emt 0:01:09]} Rad8 {[%emt 0:06:33]} 18. Nxd5 {[%emt 0:01:27]} Rxd5 {[%emt 0:00:05]} 19. Qxd5 {[%emt 0:00:11]} Kg7 {[%emt 0:00:08]} 20. Rac1 {[%emt 0:01:01]} Qb8 {[%emt 0:00:05]} 21. Rfd1 {[%emt 0:03:20]} Rd8 {[%emt 0:02:01]} 22. Qb5 {[%emt 0:08:33]} Rh8 {[%emt 0:00:28]} 23. Qe2 {[%emt 0:03:57]} g5 {[%emt 0:08:28]} 24. f4 {[%emt 0:02:03]} Ng6 {[%emt 0:01:03]} 25. Nh5+ {[%emt 0:01:27]} Rxh5 {[%emt 0:00:22]} 26. Qxh5 {[%emt 0:00:09]} gxf4 {[%emt 0:00:06]} 27. exf4 {[%emt 0:01:13]} Qxf4 {[%emt 0:00:11]} 28. Rf1 {[%emt 0:01:43]} Qd4+ {[%emt 0:02:34]} 29. Kh1 {[%emt 0:00:16]} Qxb2 {[%emt 0:00:03]} 30. Qf5 {[%emt 0:00:42]} 1-0

[Event "Icelandic Team-ch Premier 2021-22"]
[Site "Reykjavik"]
[Date "2022.03.05"]
[Round "9.3"]
[White "Ris, Robert"]
[Black "Karlsson, Bjorn-Ivar"]
[Result "1-0"]
[ECO "B31"]
[WhiteElo "2468"]
[BlackElo "2295"]
[Annotator "ChessBase"]
[PlyCount "65"]
[EventDate "2022.03.05"]
[EventType "team-tourn"]
[EventCountry "ISL"]
[SourceTitle "playchess.com"]
[Source "ChessBase"]
[SourceQuality "1"]
[TimeControl "5400+30"]

1. e4 {[%emt 0:00:06]} c5 {[%emt 0:00:08]} 2. Nf3 {[%emt 0:00:15]} Nc6 {[%emt 0:00:17]} 3. Bb5 {[%emt 0:00:20]} g6 {[%emt 0:03:22]} 4. O-O {[%emt 0:00:17]} Bg7 {[%emt 0:00:17]} 5. d3 {[%emt 0:00:53]} Nf6 {[%emt 0:06:08]} 6. Nc3 {[%emt 0:02:00]} O-O {[%emt 0:06:03]} 7. e5 {[%emt 0:01:22]} Ng4 {[%emt 0:05:17]} 8. Bxc6 {[%emt 0:00:43]} bxc6 {[%emt 0:00:59]} 9. Bf4 {[%emt 0:04:58]} f6 {[%emt 0:01:48]} 10. exf6 {[%emt 0:04:13]} Nxf6 {[%emt 0:00:31]} 11. Qd2 {[%emt 0:01:08]} d6 {[%emt 0:02:09]} 12. Bh6 {[%emt 0:02:10]} e5 {[%emt 0:03:59]} 13. Bxg7 {[%emt 0:10:57]} Kxg7 {[%emt 0:00:44]} 14. Ng5 {[%emt 0:01:38]} Nh5 {[%emt 0:05:37]} 15. Ne2 {[%emt 0:09:28]} Nf4 {[%emt 0:16:54]} 16. Nxf4 {[%emt 0:01:38]} exf4 {[%emt 0:01:27]} 17. Qc3+ {[%emt 0:06:22]} Kg8 {[%emt 0:01:16]} 18. Nf3 {[%emt 0:09:07]} Bg4 {[%emt 0:04:11]} 19. d4 {[%emt 0:11:04]} Qf6 {[%emt 0:07:54]} 20. Rad1 {[%emt 0:05:08]} cxd4 {[%emt 0:16:08]} 21. Qxc6 {[%emt 0:02:46]} Rac8 {[%emt 0:00:53]} 22. Qd5+ {[%emt 0:01:07]} Kg7 {[%emt 0:01:15]} 23. Rd2 {[%emt 0:03:15]} Bxf3 {[%emt 0:01:15]} 24. Qxf3 {[%emt 0:00:30]} Qf5 {[%emt 0:02:03]} 25. Rxd4 {[%emt 0:04:44]} Rxc2 {[%emt 0:02:42]} 26. Rxd6 {[%emt 0:00:53]} Rb8 {[%emt 0:00:48]} 27. Rd5 {[%emt 0:01:41]} Qf6 {[%emt 0:07:26]} 28. Rd7+ {[%emt 0:01:15]} Kh8 {[%emt 0:00:16]} 29. Qh3 {[%emt 0:02:03]} h5 {[%emt 0:00:21]} 30. Rxa7 {[%emt 0:00:39]} Rd8 {[%emt 0:01:54]} 31. Qb3 {[%emt 0:04:48]} Rxb2 {[%emt 0:00:46]} 32. Qa4 {[%emt 0:04:39]} Qe6 {[%emt 0:01:05]} 33. Qxf4 {[%emt 0:01:09]} 1-0

[Event "Icelandic Team-ch Premier 2021-22"]
[Site "Reykjavik"]
[Date "2022.03.05"]
[Round "9.4"]
[White "Sigurpalsson, Runar"]
[Black "Ragnarsson, Dagur"]
[Result "0-1"]
[ECO "B80"]
[WhiteElo "2279"]
[BlackElo "2351"]
[Annotator "ChessBase"]
[PlyCount "76"]
[EventDate "2022.03.05"]
[EventType "team-tourn"]
[EventCountry "ISL"]
[SourceTitle "playchess.com"]
[Source "ChessBase"]
[SourceQuality "1"]
[TimeControl "5400+30"]

1. e4 {[%emt 0:00:26]} c5 {[%emt 0:00:27]} 2. Nf3 {[%emt 0:00:09]} e6 {[%emt 0:00:06]} 3. d4 {[%emt 0:00:17]} cxd4 {[%emt 0:00:05]} 4. Nxd4 {[%emt 0:00:05]} Nc6 {[%emt 0:00:05]} 5. Nc3 {[%emt 0:00:24]} Qc7 {[%emt 0:00:07]} 6. g3 {[%emt 0:01:17]} a6 {[%emt 0:01:47]} 7. Bg2 {[%emt 0:00:11]} Nf6 {[%emt 0:04:06]} 8. O-O {[%emt 0:01:24]} d6 {[%emt 0:00:48]} 9. Re1 {[%emt 0:03:52]} Bd7 {[%emt 0:00:09]} 10. Nxc6 {[%emt 0:01:11]} bxc6 {[%emt 0:07:13]} 11. Bg5 {[%emt 0:02:18]} h6 {[%emt 0:08:16]} 12. Bxf6 {[%emt 0:01:24]} gxf6 {[%emt 0:00:05]} 13. Qf3 {[%emt 0:00:39]} Bg7 {[%emt 0:08:11]} 14. Rad1 {[%emt 0:00:36]} Rd8 {[%emt 0:01:04]} 15. e5 {[%emt 0:26:43]} fxe5 {[%emt 0:08:09]} 16. Ne4 {[%emt 0:01:21]} Bc8 {[%emt 0:05:08]} 17. Nf6+ {[%emt 0:05:57]} Kf8 {[%emt 0:00:35]} 18. Nh5 {[%emt 0:04:28]} Rh7 {[%emt 0:14:56]} 19. Nxg7 {[%emt 0:02:19]} Rxg7 {[%emt 0:00:13]} 20. Qxc6 {[%emt 0:00:16]} Qxc6 {[%emt 0:00:04]} 21. Bxc6 {[%emt 0:00:16]} f6 {[%emt 0:03:47]} 22. c3 {[%emt 0:04:40]} d5 {[%emt 0:02:04]} 23. Rd2 {[%emt 0:00:51]} Ke7 {[%emt 0:00:56]} 24. Ba4 {[%emt 0:01:19]} Bb7 {[%emt 0:02:56]} 25. Bb3 {[%emt 0:07:12]} e4 {[%emt 0:01:03]} 26. Red1 {[%emt 0:00:43]} f5 {[%emt 0:00:46]} 27. Kf1 {[%emt 0:02:20]} a5 {[%emt 0:13:32]} 28. Ke2 {[%emt 0:00:44]} Kf6 {[%emt 0:00:32]} 29. Ke3 {[%emt 0:01:00]} Rc8 {[%emt 0:02:00]} 30. Rd4 {[%emt 0:01:25]} Rc5 {[%emt 0:00:44]} 31. R4d2 {[%emt 0:01:45]} Ke5 {[%emt 0:01:13]} 32. Rd4 {[%emt 0:00:35]} Kf6 {[%emt 0:04:54]} 33. R4d2 {[%emt 0:03:02]} Rgc7 {[%emt 0:00:15]} 34. Rd4 {[%emt 0:01:40]} Ba6 {[%emt 0:01:30]} 35. f3 {[%emt 0:03:11]} Bb5 {[%emt 0:01:26]} 36. fxe4 {[%emt 0:02:19]} fxe4 {[%emt 0:00:04]} 37. R1d2 {[%emt 0:00:22]} Ke5 {[%emt 0:00:35]} 38. Rf2 {[%emt 0:00:41]} Rxc3+ {[%emt 0:00:27]} 0-1

[Event "Icelandic Team-ch Premier 2021-22"]
[Site "Reykjavik"]
[Date "2022.03.05"]
[Round "9.6"]
[White "Karason, Askell O"]
[Black "Heimisson, Hilmir Freyr"]
[Result "0-1"]
[ECO "E21"]
[WhiteElo "2186"]
[BlackElo "2312"]
[Annotator "ChessBase"]
[PlyCount "92"]
[EventDate "2022.03.05"]
[EventType "team-tourn"]
[EventCountry "ISL"]
[SourceTitle "playchess.com"]
[Source "ChessBase"]
[SourceQuality "1"]
[TimeControl "5400+30"]

1. d4 {[%emt 0:00:03]} Nf6 {[%emt 0:01:25]} 2. c4 {[%emt 0:00:06]} e6 {[%emt 0:00:31]} 3. Nc3 {[%emt 0:00:05]} Bb4 {[%emt 0:00:12]} 4. Nf3 {[%emt 0:00:05]} O-O {[%emt 0:02:03]} 5. Bg5 {[%emt 0:00:06]} c5 {[%emt 0:01:54]} 6. Rc1 {[%emt 0:00:09]} cxd4 {[%emt 0:01:59]} 7. Nxd4 {[%emt 0:02:08]} h6 {[%emt 0:00:55]} 8. Bh4 {[%emt 0:00:11]} d5 {[%emt 0:00:43]} 9. cxd5 {[%emt 0:00:26]} g5 {[%emt 0:00:42]} 10. Bg3 {[%emt 0:03:43]} Qxd5 {[%emt 0:00:14]} 11. e3 {[%emt 0:21:59]} Qxa2 {[%emt 0:00:11]} 12. Nc2 {[%emt 0:00:28]} Bxc3+ {[%emt 0:21:48]} 13. bxc3 {[%emt 0:00:05]} Nc6 {[%emt 0:01:07]} 14. Bd3 {[%emt 0:11:30]} Rd8 {[%emt 0:04:59]} 15. O-O {[%emt 0:09:37]} Qd5 {[%emt 0:11:17]} 16. Nd4 {[%emt 0:02:57]} e5 {[%emt 0:09:37]} 17. c4 {[%emt 0:09:28]} Qd6 {[%emt 0:08:00]} 18. c5 {[%emt 0:05:19]} Qe7 {[%emt 0:03:41]} 19. Nxc6 {[%emt 0:06:54]} bxc6 {[%emt 0:00:09]} 20. Qc2 {[%emt 0:00:22]} Nd5 {[%emt 0:02:35]} 21. Bc4 {[%emt 0:01:06]} Kg7 {[%emt 0:03:05]} 22. Qe4 {[%emt 0:03:11]} f6 {[%emt 0:07:27]} 23. h4 {[%emt 0:12:37]} a5 {[%emt 0:08:15]} 24. h5 {[%emt 0:00:27]} Qe8 {[%emt 0:02:41]} 25. Bd3 {[%emt 0:02:12]} f5 {[%emt 0:01:16]} 26. Qxe5+ {[%emt 0:00:39]} Qxe5 {[%emt 0:00:06]} 27. Bxe5+ {[%emt 0:00:06]} Kf7 {[%emt 0:00:59]} 28. e4 {[%emt 0:00:32]} Ne3 {[%emt 0:04:01]} 29. fxe3 {[%emt 0:01:23]} Rxd3 {[%emt 0:00:04]} 30. Bd4 {[%emt 0:02:19]} f4 {[%emt 0:02:02]} 31. g3 {[%emt 0:00:02]} Bh3 {[%emt 0:00:58]} 32. Rf2 {[%emt 0:00:05]} Ke7 {[%emt 0:00:46]} 33. gxf4 {[%emt 0:00:08]} gxf4 {[%emt 0:00:13]} 34. Rxf4 {[%emt 0:04:14]} Rd2 {[%emt 0:00:29]} 35. Bf6+ {[%emt 0:00:04]} Ke6 {[%emt 0:00:41]} 36. Bc3 {[%emt 0:00:07]} Rg8+ {[%emt 0:00:33]} 37. Kh1 {[%emt 0:00:15]} Bg2+ {[%emt 0:00:28]} 38. Kh2 {[%emt 0:00:11]} Re2 {[%emt 0:00:26]} 39. Be1 {[%emt 0:01:59]} Bxe4+ {[%emt 0:00:21]} 40. Kh3 {[%emt 0:00:22]} Rxe3+ {[%emt 0:00:35]} 41. Kh4 {[%emt 0:01:08]} Bg2 {[%emt 0:00:20]} 42. Rc3 {[%emt 0:00:32]} Rxe1 {[%emt 0:00:22]} 43. Re3+ {[%emt 0:00:42]} Rxe3 {[%emt 0:00:26]} 44. Rf6+ {[%emt 0:00:07]} Ke5 {[%emt 0:01:06]} 45. Re6+ {[%emt 0:01:46]} Kd4 {[%emt 0:00:20]} 46. Rxe3 {[%emt 0:01:03]} Rg4+ {[%emt 0:00:30]} 0-1

[Event "Icelandic Team-ch Premier 2021-22"]
[Site "Reykjavik"]
[Date "2022.03.05"]
[Round "9.7"]
[White "Johannesson, Oliver"]
[Black "Bergsson, Stefan"]
[Result "1/2-1/2"]
[ECO "D02"]
[WhiteElo "2220"]
[BlackElo "2095"]
[Annotator "ChessBase"]
[PlyCount "47"]
[EventDate "2022.03.05"]
[EventType "team-tourn"]
[EventCountry "ISL"]
[SourceTitle "playchess.com"]
[Source "ChessBase"]
[SourceQuality "1"]
[TimeControl "5400+30"]

1. d4 {[%emt 0:04:36]} d5 {[%emt 0:12:35]} 2. Bf4 {[%emt 0:01:48]} c5 {[%emt 0:04:33]} 3. e3 {[%emt 0:06:56]} Nf6 {[%emt 0:00:28]} 4. c3 {[%emt 0:00:30]} Nc6 {[%emt 0:00:33]} 5. Nd2 {[%emt 0:01:09]} e6 {[%emt 0:00:41]} 6. Ngf3 {[%emt 0:00:39]} Bd6 {[%emt 0:00:16]} 7. Bg3 {[%emt 0:00:28]} O-O {[%emt 0:00:10]} 8. Bd3 {[%emt 0:00:14]} Be7 {[%emt 0:03:42]} 9. Ne5 {[%emt 0:01:46]} Nxe5 {[%emt 0:06:30]} 10. dxe5 {[%emt 0:01:34]} Nd7 {[%emt 0:00:58]} 11. Nf3 {[%emt 0:01:46]} c4 {[%emt 0:02:08]} 12. Bc2 {[%emt 0:01:27]} b5 {[%emt 0:01:46]} 13. h4 {[%emt 0:02:11]} Nc5 {[%emt 0:08:42]} 14. b4 {[%emt 0:11:37]} Ne4 {[%emt 0:08:31]} 15. Ng5 {[%emt 0:22:35]} f5 {[%emt 0:10:28]} 16. exf6 {[%emt 0:02:47]} Bxf6 {[%emt 0:00:58]} 17. Nxe4 {[%emt 0:02:28]} dxe4 {[%emt 0:00:25]} 18. Qxd8 {[%emt 0:03:14]} Rxd8 {[%emt 0:02:33]} 19. Bxe4 {[%emt 0:00:35]} Bxc3+ {[%emt 0:02:33]} 20. Ke2 {[%emt 0:00:07]} Rd2+ {[%emt 0:08:47]} 21. Kf3 {[%emt 0:01:06]} Bxa1 {[%emt 0:00:43]} 22. Rxa1 {[%emt 0:01:09]} Rd5 {[%emt 0:01:14]} 23. Bxd5 {[%emt 0:00:55]} exd5 {[%emt 0:00:02]} 24. a4 {[%emt 0:04:48]} 1/2-1/2

[Event "Icelandic Team-ch Premier 2021-22"]
[Site "Reykjavik"]
[Date "2022.03.05"]
[Round "9.8"]
[White "Thorsteinsson, Arnar"]
[Black "Halldorsson, Jon Arni"]
[Result "1-0"]
[ECO "C02"]
[WhiteElo "2199"]
[BlackElo "2070"]
[Annotator "ChessBase"]
[PlyCount "99"]
[EventDate "2022.03.05"]
[EventType "team-tourn"]
[EventCountry "ISL"]
[SourceTitle "playchess.com"]
[Source "ChessBase"]
[SourceQuality "1"]
[TimeControl "5400+30"]

1. e4 {[%emt 0:00:11]} e6 {[%emt 0:00:09]} 2. d4 {[%emt 0:00:06]} d5 {[%emt 0:00:07]} 3. e5 {[%emt 0:00:15]} c5 {[%emt 0:00:08]} 4. c3 {[%emt 0:00:06]} Qb6 {[%emt 0:00:19]} 5. Nf3 {[%emt 0:00:19]} Bd7 {[%emt 0:00:12]} 6. a3 {[%emt 0:00:18]} c4 {[%emt 0:00:47]} 7. g3 {[%emt 0:00:23]} Nc6 {[%emt 0:01:06]} 8. h4 {[%emt 0:00:34]} h6 {[%emt 0:01:30]} 9. Nbd2 {[%emt 0:00:31]} Na5 {[%emt 0:01:01]} 10. h5 {[%emt 0:00:57]} Ne7 {[%emt 0:00:45]} 11. Bh3 {[%emt 0:00:13]} O-O-O {[%emt 0:02:09]} 12. O-O {[%emt 0:00:16]} Kb8 {[%emt 0:01:24]} 13. Nh4 {[%emt 0:01:28]} Nc8 {[%emt 0:01:34]} 14. Kh2 {[%emt 0:00:25]} Qc7 {[%emt 0:01:07]} 15. f4 {[%emt 0:00:35]} Be7 {[%emt 0:05:35]} 16. Ng2 {[%emt 0:00:25]} Rhg8 {[%emt 0:08:57]} 17. f5 {[%emt 0:02:43]} exf5 {[%emt 0:12:37]} 18. Bxf5 {[%emt 0:02:33]} Bg5 {[%emt 0:14:12]} 19. Qg4 {[%emt 0:04:31]} g6 {[%emt 0:10:00]} 20. Bxd7 {[%emt 0:00:54]} Qxd7 {[%emt 0:00:23]} 21. Qxd7 {[%emt 0:00:33]} Rxd7 {[%emt 0:00:05]} 22. hxg6 {[%emt 0:00:33]} fxg6 {[%emt 0:01:55]} 23. Nf3 {[%emt 0:02:58]} Bd8 {[%emt 0:06:02]} 24. Be3 {[%emt 0:03:01]} g5 {[%emt 0:01:36]} 25. Rf2 {[%emt 0:00:30]} Nc6 {[%emt 0:01:57]} 26. Raf1 {[%emt 0:00:32]} Rh7 {[%emt 0:03:30]} 27. Ng1 {[%emt 0:02:35]} Be7 {[%emt 0:00:22]} 28. Rf7 {[%emt 0:00:41]} Rgg7 {[%emt 0:00:13]} 29. Rxg7 {[%emt 0:00:11]} Rxg7 {[%emt 0:00:05]} 30. Ne2 {[%emt 0:00:30]} h5 {[%emt 0:02:31]} 31. Bd2 {[%emt 0:00:40]} Nd8 {[%emt 0:05:59]} 32. Ne3 {[%emt 0:01:23]} Nb6 {[%emt 0:00:10]} 33. Kg2 {[%emt 0:00:47]} Ne6 {[%emt 0:01:32]} 34. Ng1 {[%emt 0:04:14]} Nf4+ {[%emt 0:04:28]} 35. Kf2 {[%emt 0:02:08]} Ne6 {[%emt 0:03:37]} 36. Ke2 {[%emt 0:00:34]} g4 {[%emt 0:01:38]} 37. Nf5 {[%emt 0:02:17]} Rf7 {[%emt 0:00:20]} 38. Nxe7 {[%emt 0:00:34]} Rxe7 {[%emt 0:00:06]} 39. Rf5 {[%emt 0:00:22]} Ng7 {[%emt 0:02:23]} 40. Rf8+ {[%emt 0:00:20]} Kc7 {[%emt 0:00:05]} 41. Bg5 {[%emt 0:00:29]} Rd7 {[%emt 0:00:52]} 42. Kd2 {[%emt 0:02:29]} Ne6 {[%emt 0:00:30]} 43. Rf5 {[%emt 0:00:14]} Rh7 {[%emt 0:04:10]} 44. Bh4 {[%emt 0:03:24]} Nd7 {[%emt 0:01:03]} 45. Ne2 {[%emt 0:01:24]} Kc6 {[%emt 0:00:31]} 46. Ke3 {[%emt 0:00:53]} Ndf8 {[%emt 0:00:59]} 47. Nf4 {[%emt 0:03:50]} Nxf4 {[%emt 0:01:05]} 48. gxf4 {[%emt 0:00:15]} Ne6 {[%emt 0:01:00]} 49. Rf6 {[%emt 0:00:19]} Kd7 {[%emt 0:00:11]} 50. f5 {[%emt 0:00:23]} 1-0

[Event "Icelandic Team-ch Premier 2021-22"]
[Site "Reykjavik"]
[Date "2022.03.05"]
[Round "9.9"]
[White "Stefansson, Vignir Vatnar"]
[Black "Oleksiyenko, Mykhaylo"]
[Result "1/2-1/2"]
[ECO "D12"]
[WhiteElo "2484"]
[BlackElo "2584"]
[Annotator "ChessBase"]
[PlyCount "100"]
[EventDate "2022.03.05"]
[EventType "team-tourn"]
[EventCountry "ISL"]
[SourceTitle "playchess.com"]
[Source "ChessBase"]
[SourceQuality "1"]
[TimeControl "5400+30"]

1. Nf3 {[%emt 0:04:27]} d5 {[%emt 0:00:16]} 2. d4 {[%emt 0:01:48]} Nf6 {[%emt 0:00:11]} 3. c4 {[%emt 0:00:14]} c6 {[%emt 0:00:12]} 4. e3 {[%emt 0:01:13]} Bf5 {[%emt 0:00:12]} 5. Qb3 {[%emt 0:00:36]} Qb6 {[%emt 0:03:02]} 6. cxd5 {[%emt 0:01:36]} Qxb3 {[%emt 0:01:56]} 7. axb3 {[%emt 0:00:08]} Nxd5 {[%emt 0:01:26]} 8. Bd2 {[%emt 0:05:16]} e6 {[%emt 0:03:48]} 9. Na3 {[%emt 0:05:55]} Nb4 {[%emt 0:08:23]} 10. Bc3 {[%emt 0:02:31]} b5 {[%emt 0:08:26]} 11. Be2 {[%emt 0:03:13]} Nd5 {[%emt 0:17:14]} 12. Bd2 {[%emt 0:02:25]} Bb4 {[%emt 0:06:17]} 13. O-O {[%emt 0:01:23]} Ke7 {[%emt 0:01:19]} 14. Rfc1 {[%emt 0:01:01]} Bxd2 {[%emt 0:00:19]} 15. Nxd2 {[%emt 0:00:06]} Bg6 {[%emt 0:05:23]} 16. Bf3 {[%emt 0:03:31]} Rd8 {[%emt 0:05:36]} 17. h4 {[%emt 0:06:01]} h6 {[%emt 0:01:13]} 18. Nc2 {[%emt 0:08:55]} a6 {[%emt 0:00:26]} 19. Bxd5 {[%emt 0:02:03]} cxd5 {[%emt 0:01:06]} 20. Nb4 {[%emt 0:00:56]} Kd7 {[%emt 0:06:35]} 21. Nf3 {[%emt 0:03:20]} f6 {[%emt 0:00:06]} 22. Rc5 {[%emt 0:00:05]} Rc8 {[%emt 0:07:52]} 23. Rxb5 {[%emt 0:00:43]} Rc1+ {[%emt 0:00:07]} 24. Rxc1 {[%emt 0:00:10]} axb5 {[%emt 0:00:02]} 25. Ne1 {[%emt 0:06:44]} Na6 {[%emt 0:04:14]} 26. Ned3 {[%emt 0:01:16]} Bxd3 {[%emt 0:01:12]} 27. Nxd3 {[%emt 0:00:06]} Kd6 {[%emt 0:00:29]} 28. f4 {[%emt 0:01:03]} h5 {[%emt 0:01:23]} 29. Kf2 {[%emt 0:00:38]} Nc7 {[%emt 0:00:23]} 30. Nb4 {[%emt 0:02:04]} Kd7 {[%emt 0:00:13]} 31. Rc5 {[%emt 0:00:43]} g6 {[%emt 0:02:12]} 32. Nd3 {[%emt 0:03:42]} Ra1 {[%emt 0:01:09]} 33. f5 {[%emt 0:08:48]} gxf5 {[%emt 0:03:50]} 34. Nf4 {[%emt 0:00:06]} Ne8 {[%emt 0:04:38]} 35. Rxb5 {[%emt 0:03:43]} Nd6 {[%emt 0:00:15]} 36. Rb8 {[%emt 0:01:28]} Rb1 {[%emt 0:00:28]} 37. Nd3 {[%emt 0:00:57]} Ne4+ {[%emt 0:01:21]} 38. Ke2 {[%emt 0:00:05]} Rg1 {[%emt 0:00:10]} 39. Rg8 {[%emt 0:06:15]} Rh1 {[%emt 0:00:05]} 40. Nc5+ {[%emt 0:02:45]} Nxc5 {[%emt 0:00:30]} 41. dxc5 {[%emt 0:00:05]} Rxh4 {[%emt 0:00:05]} 42. Rb8 {[%emt 0:00:04]} f4 {[%emt 0:02:16]} 43. exf4 {[%emt 0:03:08]} Rxf4 {[%emt 0:00:08]} 44. b4 {[%emt 0:00:05]} Kc7 {[%emt 0:01:12]} 45. Rb6 {[%emt 0:00:10]} e5 {[%emt 0:00:16]} 46. b3 {[%emt 0:01:24]} h4 {[%emt 0:00:10]} 47. b5 {[%emt 0:01:11]} Rb4 {[%emt 0:00:31]} 48. Rc6+ {[%emt 0:00:38]} Kb7 {[%emt 0:00:04]} 49. Rb6+ {[%emt 0:00:35]} Kc7 {[%emt 0:00:03]} 50. Rc6+ {[%emt 0:01:46]} Kb7 {[%emt 0:00:03]} 1/2-1/2